fUST/lending_fUST_20250925
["ID","MTS","AMOUNT","RATE_DAILY","PERIOD"]
[387557019,1758767440350,-480.0,0.00019726,2]
[387557021,1758767440360,-480.0,0.00019726,2]
[387557023,1758767440369,-1621.46,0.00019726,2]
[387557025,1758767440379,-561.41,0.00019726,2]
[387557027,1758767440388,-480.0,0.00019726,2]
[387557029,1758767440398,-1267.45,0.00019726,2]
[387557031,1758767440407,-1081.32,0.00019726,2]
[387557033,1758767440416,-2780.66847895,0.000199,2]
[387557035,1758767440426,-1004.82817551,0.00019921,2]
[387557037,1758767440436,-1006.60646696,0.00019921,2]
[387557039,1758767440445,-1000.0,0.00019921,2]
[387557041,1758767440455,-1000.0,0.00019921,2]
[387557043,1758767440464,-1006.21562887,0.00019921,2]
[387557045,1758767440474,-1000.0,0.00019921,2]
[387557047,1758767440484,-1000.0,0.00019921,2]
[387557049,1758767440493,-540.23955231,0.00019921,2]
[387557051,1758767440503,-1000.0,0.00019921,2]
[387557053,1758767440512,-1000.0,0.00019921,2]
[387557056,1758767440521,-610.2293902,0.00019921,2]
[387557058,1758767440532,-1000.0,0.00019921,2]
[387557060,1758767440542,-1000.0,0.00019921,2]
[387557062,1758767440552,-1000.0,0.00019921,2]
[387557064,1758767440562,-500.0,0.00019921,2]
[387557066,1758767440573,-500.0,0.00019973,2]
[387557068,1758767440584,-500.0,0.00019973,2]
[387557070,1758767440594,-42625.51006972,0.0001999,2]
[387557072,1758767440604,-500.0,0.0002,2]
[387557074,1758767440615,-160.0,0.0002,3]
[387557076,1758767440625,-480.0,0.0002,2]
[387557078,1758767440634,-480.0,0.0002,2]
[387557080,1758767440647,-480.0,0.0002,2]
[387557081,1758767440660,-480.0,0.0002,2]
[387557084,1758767440671,-480.0,0.0002,2]
[387557086,1758767440681,-480.0,0.0002,2]
[387557088,1758767440691,-548.51,0.0002,2]
[387557090,1758767440702,-783.15,0.0002,2]
[387557092,1758767440712,-480.0,0.0002,2]
[387557094,1758767440723,-662.93,0.0002,2]
[387557096,1758767440733,-1015.1,0.0002,2]
[387557098,1758767440744,-592.93,0.0002,2]
[387557100,1758767440754,-480.0,0.0002,2]
[387557102,1758767440763,-795.77,0.0002,2]
[387557104,1758767440773,-480.0,0.0002,2]
[387557106,1758767440783,-480.0,0.0002,2]
[387557108,1758767440792,-480.0,0.0002,2]
[387557110,1758767440802,-721.08,0.0002,2]
[387557112,1758767440811,-480.0,0.0002,2]
[387557114,1758767440821,-480.0,0.0002,2]
[387557116,1758767440831,-588.34,0.0002,2]
[387557118,1758767440840,-480.0,0.0002,2]
[387557120,1758767440850,-480.0,0.0002,2]
[387557122,1758767440859,-2319.69,0.0002,2]
[387557124,1758767440869,-895.99,0.0002,2]
[387557126,1758767440878,-480.0,0.0002,2]
[387557128,1758767440888,-480.0,0.0002,2]
[387557130,1758767440898,-480.0,0.0002,2]
[387557132,1758767440907,-504.56,0.0002,2]
[387557134,1758767440917,-480.0,0.0002,2]
[387557136,1758767440926,-480.0,0.0002,2]
[387557138,1758767440935,-183.73007889,0.0002,2]
[387557140,1758767440944,-747.57,0.0002,2]
[387557142,1758767440953,-480.0,0.0002,2]
[387557144,1758767440962,-480.0,0.0002,2]
[387557146,1758767440972,-1621.46,0.0002,2]
[387557148,1758767440981,-561.41,0.0002,2]
[387557150,1758767440991,-480.0,0.0002,2]
[387557152,1758767441001,-1267.45,0.0002,2]
[387557154,1758767441010,-1081.32,0.0002,2]
[387557156,1758767441019,-4586.0,0.0002018,2]
[387557158,1758767441028,-500.0,0.00020195,2]
[387557160,1758767441037,-480.0,0.00020273,2]
[387557162,1758767441047,-480.0,0.00020273,2]
[387557164,1758767441056,-480.0,0.00020273,2]
[387557166,1758767441066,-480.0,0.00020273,2]
[387557168,1758767441075,-480.0,0.00020273,2]
[387557170,1758767441086,-480.0,0.00020273,2]
[387557172,1758767441095,-548.51,0.00020273,2]
[387557174,1758767441104,-783.15,0.00020273,2]
[387557176,1758767441113,-480.0,0.00020273,2]
[387557178,1758767441123,-662.93,0.00020273,2]
[387557180,1758767441131,-1015.1,0.00020273,2]
[387557182,1758767441141,-592.93,0.00020273,2]
[387557184,1758767441151,-480.0,0.00020273,2]
[387557186,1758767441160,-795.77,0.00020273,2]
[387557188,1758767441169,-480.0,0.00020273,2]
[387557190,1758767441178,-480.0,0.00020273,2]
[387557191,1758767441187,-480.0,0.00020273,2]
[387557194,1758767441197,-721.08,0.00020273,2]
[387557196,1758767441206,-480.0,0.00020273,2]
[387557198,1758767441216,-480.0,0.00020273,2]
[387557200,1758767441226,-588.34,0.00020273,2]
[387557202,1758767441235,-480.0,0.00020273,2]
[387557204,1758767441244,-480.0,0.00020273,2]
[387557205,1758767441253,-2319.69,0.00020273,2]
[387557208,1758767441263,-895.99,0.00020273,2]
[387557209,1758767441273,-480.0,0.00020273,2]
[387557211,1758767441282,-480.0,0.00020273,2]
[387557213,1758767441291,-480.0,0.00020273,2]
[387557215,1758767441300,-504.56,0.00020273,2]
[387557217,1758767441310,-480.0,0.00020273,2]
[387557219,1758767441319,-480.0,0.00020273,2]
[387557221,1758767441329,-747.57,0.00020273,2]
[387557223,1758767441338,-480.0,0.00020273,2]
[387557225,1758767441347,-480.0,0.00020273,2]
[387557227,1758767441357,-1621.46,0.00020273,2]
[387557229,1758767441366,-561.41,0.00020273,2]
[387557231,1758767441375,-480.0,0.00020273,2]
[387557233,1758767441384,-1267.45,0.00020273,2]
[387557235,1758767441394,-1081.32,0.00020273,2]
[387557237,1758767441403,-505.5219847,0.00020468,2]
[387557239,1758767441412,-848.64461143,0.00020468,2]
[387557241,1758767441422,-1500.0,0.00020468,2]
[387557243,1758767441431,-1016.32501829,0.00020468,2]
[387557245,1758767441441,-1018.67734607,0.00020468,2]
[387557247,1758767441450,-505.20370892,0.00020468,2]
[387557249,1758767441459,-510.47010389,0.00020468,2]
[387557251,1758767441468,-1504.89489278,0.00020468,2]
[387557253,1758767441477,-1500.0,0.00020468,2]
[387557255,1758767441487,-500.0,0.00020469,2]
[387557257,1758767441496,-1000.0,0.00020521,2]
[387557259,1758767441505,-869.53540277,0.00020521,2]
[387557261,1758767441515,-300.0,0.00020537,2]
[387557263,1758767441524,-480.0,0.00020547,2]
[387557265,1758767441533,-480.0,0.00020547,2]
[387557267,1758767441542,-235.2607604,0.00020547,2]
[387557269,1758767441552,-480.0,0.00020547,2]
[387557271,1758767441562,-480.0,0.00020547,2]
[387557273,1758767441573,-480.0,0.00020547,2]
[387557275,1758767441583,-548.51,0.00020547,2]
[387557277,1758767441593,-157.193213,0.00020547,2]
[387557279,1758767441602,-199.516749,0.00020547,2]
[387557281,1758767441611,-783.15,0.00020547,2]
[387557283,1758767441621,-480.0,0.00020547,2]
[387557285,1758767441632,-662.93,0.00020547,2]
[387557287,1758767441643,-1015.1,0.00020547,2]
[387557288,1758767441656,-592.93,0.00020547,2]
[387557289,1758767441666,-480.0,0.00020547,2]
[387557290,1758767441675,-795.77,0.00020547,2]
[387557291,1758767441685,-480.0,0.00020547,2]
[387557292,1758767441694,-480.0,0.00020547,2]
[387557293,1758767441703,-480.0,0.00020547,2]
[387557294,1758767441712,-721.08,0.00020547,2]
[387557295,1758767441722,-480.0,0.00020547,2]
[387557296,1758767441731,-480.0,0.00020547,2]
[387557297,1758767441741,-588.34,0.00020547,2]
[387557298,1758767441750,-480.0,0.00020547,2]
[387557299,1758767441759,-480.0,0.00020547,2]
[387557300,1758767441768,-2319.69,0.00020547,2]
[387557301,1758767441778,-895.99,0.00020547,2]
[387557302,1758767441787,-480.0,0.00020547,2]
[387557304,1758767441797,-480.0,0.00020547,2]
[387557305,1758767441807,-480.0,0.00020547,2]
[387557306,1758767441816,-157.940762,0.00020547,2]
[387557308,1758767441826,-157.940762,0.00020547,2]
[387557310,1758767441835,-157.940762,0.00020547,2]
[387557312,1758767441844,-157.940762,0.00020547,2]
[387557314,1758767441853,-504.56,0.00020547,2]
[387557316,1758767441863,-155.518796,0.00020547,2]
[387557318,1758767441872,-480.0,0.00020547,2]
[387557319,1758767441882,-480.0,0.00020547,2]
[387557322,1758767441892,-747.57,0.00020547,2]
[387557323,1758767441902,-480.0,0.00020547,2]
[387557326,1758767441912,-480.0,0.00020547,2]
[387557328,1758767441922,-151.0,0.00020547,2]
[387557330,1758767441931,-1621.46,0.00020547,2]
[387557331,1758767441940,-561.41,0.00020547,2]
[387557334,1758767441950,-480.0,0.00020547,2]
[387557335,1758767441959,-1267.45,0.00020547,2]
[387557337,1758767441969,-151.0,0.00020547,2]
[387557339,1758767441978,-1081.32,0.00020547,2]
[387557341,1758767441988,-151.0,0.00020547,2]
[387557343,1758767441998,-1007.71539267,0.00020548,2]
[387557346,1758767442008,-1104.45003124,0.00020634,2]
[387557348,1758767442017,-151.0,0.00020634,2]
[387557350,1758767442027,-163.710445,0.00020634,2]
[387557352,1758767442036,-163.710445,0.00020634,2]
[387557354,1758767442045,-163.710445,0.00020634,2]
[387557356,1758767442054,-163.710445,0.00020634,2]
[387557358,1758767442064,-781.04,0.00020712,3]
[387557359,1758767442073,-390.52,0.00020712,3]
[387557361,1758767442083,-500.0,0.00020743,2]
[387557364,1758767442093,-497.16748905,0.0002082,2]
[387557365,1758767442102,-480.0,0.0002082,2]
[387557368,1758767442112,-158.15226016,0.0002082,2]
[387557369,1758767442121,-151.0,0.0002082,2]
[387557372,1758767442131,-493.99463625,0.0002082,2]
[387557373,1758767442140,-151.0,0.0002082,2]
[387557375,1758767442150,-151.0,0.0002082,2]
[387557377,1758767442159,-832.68,0.0002082,2]
[387557379,1758767442169,-996.39,0.0002082,2]
[387557382,1758767442179,-480.0,0.0002082,2]
[387557384,1758767442187,-480.0,0.0002082,2]
[387557385,1758767442197,-429.10296742,0.00020821,2]
[387557388,1758767442206,-480.0,0.00020821,2]
[387557389,1758767442215,-155.492607,0.00020821,2]
[387557392,1758767442225,-152.856321,0.00020821,2]
[387557394,1758767442234,-155.269055,0.00020821,2]
[387557396,1758767442243,-151.83079,0.00020821,2]
[387557398,1758767442252,-152.401189,0.00020821,2]
[387557400,1758767442262,-151.0,0.00020821,2]
[387557402,1758767442271,-480.0,0.00020821,2]
[387557404,1758767442280,-153.124884,0.00020821,2]
[387557406,1758767442289,-480.0,0.00020821,2]
[387557407,1758767442298,-480.0,0.00020821,2]
[387557409,1758767442308,-548.51,0.00020821,2]
[387557411,1758767442317,-783.15,0.00020821,2]
[387557413,1758767442327,-480.0,0.00020821,2]
[387557416,1758767442337,-662.93,0.00020821,2]
[387557417,1758767442346,-1015.1,0.00020821,2]
[387557420,1758767442356,-592.93,0.00020821,2]
[387557422,1758767442366,-299.75954113,0.00020821,2]
[387557435,1758767442475,-795.77,0.00020821,2]
[387557437,1758767442485,-480.0,0.00020821,2]
[387557439,1758767442494,-480.0,0.00020821,2]
[387557441,1758767442504,-480.0,0.00020821,2]
[387557442,1758767442513,-480.0,0.00020821,2]
[387557445,1758767442522,-721.08,0.00020821,2]
[387557447,1758767442533,-480.0,0.00020821,2]
[387557449,1758767442542,-588.34,0.00020821,2]
[387557451,1758767442552,-480.0,0.00020821,2]
[387557453,1758767442561,-480.0,0.00020821,2]
[387557455,1758767442571,-2319.69,0.00020821,2]
[387557456,1758767442582,-895.99,0.00020821,2]
[387557459,1758767442592,-480.0,0.00020821,2]
[387557461,1758767442602,-480.0,0.00020821,2]
[387557463,1758767442612,-480.0,0.00020821,2]
[387557465,1758767442622,-504.56,0.00020821,2]
[387557467,1758767442631,-480.0,0.00020821,2]
[387557469,1758767442641,-480.0,0.00020821,2]
[387557470,1758767442653,-747.57,0.00020821,2]
[387557473,1758767442663,-479.66633549,0.00020821,2]
[387557474,1758767442672,-480.0,0.00020821,2]
[387557476,1758767442682,-1621.46,0.00020821,2]
[387557478,1758767442692,-561.41,0.00020821,2]
[387557480,1758767442702,-480.0,0.00020821,2]
[387557482,1758767442711,-1267.45,0.00020821,2]
[387557484,1758767442720,-1081.32,0.00020821,2]
[387557486,1758767442730,-157.3356586,0.00020852,2]
[387557488,1758767442740,-501.05629741,0.00020873,2]
[387557490,1758767442749,-500.66169981,0.00020873,2]
[387557492,1758767442759,-2780.66847892,0.00020972,2]
[387557494,1758767442768,-152.141053,0.00020995,2]
[387557496,1758767442778,-151.893397,0.00020995,2]
[387557498,1758767442787,-688.67808718,0.00021,10]
[387557500,1758767442797,-244.0,0.00021008,2]
[387557502,1758767442806,-1011.73043267,0.00021016,2]
[387557504,1758767442816,-1829.89320392,0.00021016,2]
[387557506,1758767442825,-500.0,0.00021017,2]
[387557507,1758767442834,-731.55768368,0.00021068,2]
[387557509,1758767442843,-500.0,0.00021073,2]
[387557511,1758767442853,-501.31987284,0.00021073,2]
[387557514,1758767442862,-501.7140521,0.00021073,2]
[387557516,1758767442873,-502.01785286,0.00021073,2]
[387557517,1758767442882,-500.0,0.00021073,2]
[387557519,1758767442891,-501.51328029,0.00021073,2]
[387557521,1758767442901,-501.64480659,0.00021073,2]
[387557523,1758767442910,-503.84850847,0.00021073,2]
[387557525,1758767442920,-501.49750944,0.00021073,2]
[387557527,1758767442929,-620.70816975,0.00021094,2]
[387557529,1758767442938,-151.0,0.00021094,2]
[387557531,1758767442947,-832.68,0.00021094,2]
[387557533,1758767442957,-996.39,0.00021094,2]
[387557535,1758767442966,-480.0,0.00021094,2]
[387557537,1758767442975,-480.0,0.00021094,2]
[387557539,1758767442985,-480.0,0.00021095,2]
[387557541,1758767442994,-272.93999317,0.00021095,2]
[387557543,1758767443003,-480.0,0.00021095,2]
[387557545,1758767443013,-585.66665514,0.00021095,2]
[387557547,1758767443022,-548.51,0.00021095,2]
[387557549,1758767443031,-783.15,0.00021095,2]
[387557551,1758767443041,-480.0,0.00021095,2]
[387557553,1758767443050,-662.93,0.00021095,2]
[387557555,1758767443060,-1015.1,0.00021095,2]
[387557557,1758767443070,-592.93,0.00021095,2]
[387557559,1758767443080,-795.77,0.00021095,2]
[387557561,1758767443088,-480.0,0.00021095,2]
[387557562,1758767443097,-202.32826478,0.00021095,2]
[387557564,1758767443106,-480.0,0.00021095,2]
[387557566,1758767443116,-480.0,0.00021095,2]
[387557568,1758767443125,-721.08,0.00021095,2]
[387557570,1758767443134,-480.0,0.00021095,2]
[387557572,1758767443145,-588.34,0.00021095,2]
[387557574,1758767443154,-244.43148459,0.00021095,2]
[387557576,1758767443163,-480.0,0.00021095,2]
[387557578,1758767443172,-2319.69,0.00021095,2]
[387557580,1758767443181,-895.99,0.00021095,2]
[387557582,1758767443190,-480.0,0.00021095,2]
[387557584,1758767443199,-480.0,0.00021095,2]
[387557585,1758767443209,-480.0,0.00021095,2]
[387557587,1758767443218,-504.56,0.00021095,2]
[387557589,1758767443227,-480.0,0.00021095,2]
[387557591,1758767443237,-480.0,0.00021095,2]
[387557593,1758767443246,-747.57,0.00021095,2]
[387557595,1758767443255,-480.0,0.00021095,2]
[387557597,1758767443264,-151.0,0.00021095,2]
[387557599,1758767443274,-1621.46,0.00021095,2]
[387557601,1758767443283,-561.41,0.00021095,2]
[387557603,1758767443293,-480.0,0.00021095,2]
[387557605,1758767443302,-1267.45,0.00021095,2]
[387557607,1758767443313,-1081.32,0.00021095,2]
[387557610,1758767443322,-244.0,0.00021115,2]
[387557612,1758767443331,-982.597,0.00021162,2]
[387557614,1758767443340,-2163.56,0.00021162,2]
[387557616,1758767443350,-635.0,0.00021162,2]
[387557618,1758767443359,-410.0,0.00021162,2]
[387557620,1758767443369,-175.874371,0.00021162,2]
[387557622,1758767443378,-163.710445,0.00021162,2]
[387557624,1758767443387,-163.710445,0.00021162,2]
[387557626,1758767443397,-163.710445,0.00021162,2]
[387557628,1758767443407,-163.710445,0.00021162,2]
[387557630,1758767443416,-157.940762,0.00021162,2]
[387557631,1758767443425,-157.940762,0.00021162,2]
[387557633,1758767443435,-157.940762,0.00021162,2]
[387557635,1758767443444,-157.940762,0.00021162,2]
[387557637,1758767443454,-197.81317,0.00021162,2]
[387557639,1758767443464,-168.63354543,0.00021166,2]
[387557641,1758767443473,-244.0,0.00021178,2]
[387557643,1758767443483,-244.0,0.00021204,2]
[387557645,1758767443493,-244.0,0.00021218,2]
[387557647,1758767443502,-500.0,0.00021242,2]
[387557649,1758767443512,-500.0,0.00021242,2]
[387557651,1758767443522,-500.0,0.00021242,2]
[387557653,1758767443531,-500.0,0.00021242,2]
[387557655,1758767443540,-513.66390274,0.00021291,2]
[387557657,1758767443549,-244.0,0.00021296,2]
[387557659,1758767443559,-316.81528722,0.0002132,2]
[387557661,1758767443570,-500.0,0.00021365,2]
[387557663,1758767443588,-500.0,0.00021365,2]
[387557665,1758767443598,-832.68,0.00021368,2]
[387557667,1758767443608,-996.39,0.00021368,2]
[387557669,1758767443618,-480.0,0.00021368,2]
[387557671,1758767443628,-480.0,0.00021368,2]
[387557673,1758767443641,-480.0,0.00021369,2]
[387557675,1758767443652,-151.0,0.00021369,2]
[387557677,1758767443663,-480.0,0.00021369,2]
[387557679,1758767443673,-157.062607,0.00021369,2]
[387557681,1758767443682,-157.859911,0.00021369,2]
[387557683,1758767443692,-548.51,0.00021369,2]
[387557685,1758767443701,-783.15,0.00021369,2]
[387557687,1758767443710,-480.0,0.00021369,2]
[387557689,1758767443719,-662.93,0.00021369,2]
[387557691,1758767443729,-1015.1,0.00021369,2]
[387557693,1758767443738,-592.93,0.00021369,2]
[387557695,1758767443748,-795.77,0.00021369,2]
[387557697,1758767443757,-425.69531566,0.00021369,2]
[387557699,1758767443767,-480.0,0.00021369,2]
[387557701,1758767443776,-319.27289765,0.00021369,2]
[387557703,1758767443785,-721.08,0.00021369,2]
[387557705,1758767443795,-626.44291287,0.00021369,2]
[387557707,1758767443804,-588.34,0.00021369,2]
[387557709,1758767443813,-480.0,0.00021369,2]
[387557711,1758767443823,-2319.69,0.00021369,2]
[387557713,1758767443833,-895.99,0.00021369,2]
[387557715,1758767443842,-480.0,0.00021369,2]
[387557716,1758767443852,-480.0,0.00021369,2]
[387557718,1758767443861,-480.0,0.00021369,2]
[387557720,1758767443871,-504.56,0.00021369,2]
[387557722,1758767443880,-389.64572452,0.00021369,2]
[387557725,1758767443890,-480.0,0.00021369,2]
[387557726,1758767443900,-747.57,0.00021369,2]
[387557728,1758767443909,-480.0,0.00021369,2]
[387557730,1758767443919,-1621.46,0.00021369,2]
[387557732,1758767443929,-561.41,0.00021369,2]
[387557734,1758767443939,-480.0,0.00021369,2]
[387557736,1758767443948,-1267.45,0.00021369,2]
[387557738,1758767443958,-1081.32,0.00021369,2]
[387557740,1758767443967,-244.0,0.00021403,2]
[387557742,1758767443977,-359.05997223,0.00021443,2]
[387557744,1758767443986,-500.5620322,0.00021621,2]
[387557746,1758767443996,-1000.0,0.00021621,2]
[387557748,1758767444005,-832.68,0.00021642,2]
[387557750,1758767444014,-996.39,0.00021642,2]
[387557752,1758767444024,-480.0,0.00021642,2]
[387557754,1758767444033,-480.0,0.00021642,2]
[387557756,1758767444042,-480.0,0.00021643,2]
[387557758,1758767444051,-480.0,0.00021643,2]
[387557760,1758767444061,-548.51,0.00021643,2]
[387557762,1758767444071,-783.15,0.00021643,2]
[387557764,1758767444080,-480.0,0.00021643,2]
[387557766,1758767444090,-662.93,0.00021643,2]
[387557768,1758767444101,-1015.1,0.00021643,2]
[387557770,1758767444110,-592.93,0.00021643,2]
[387557772,1758767444120,-795.77,0.00021643,2]
[387557774,1758767444130,-480.0,0.00021643,2]
[387557776,1758767444140,-721.08,0.00021643,2]
[387557778,1758767444150,-588.34,0.00021643,2]
[387557780,1758767444159,-480.0,0.00021643,2]
[387557782,1758767444168,-2319.69,0.00021643,2]
[387557784,1758767444178,-895.99,0.00021643,2]
[387557785,1758767444188,-480.0,0.00021643,2]
[387557786,1758767444197,-480.0,0.00021643,2]
[387557787,1758767444207,-480.0,0.00021643,2]
[387557788,1758767444216,-504.56,0.00021643,2]
[387557789,1758767444226,-480.0,0.00021643,2]
[387557790,1758767444235,-747.57,0.00021643,2]
[387557791,1758767444245,-480.0,0.00021643,2]
[387557792,1758767444255,-1621.46,0.00021643,2]
[387557793,1758767444264,-561.41,0.00021643,2]
[387557794,1758767444274,-480.0,0.00021643,2]
[387557795,1758767444283,-1267.45,0.00021643,2]
[387557796,1758767444293,-1081.32,0.00021643,2]
[387557797,1758767444305,-244.0,0.00021665,2]
[387557798,1758767444315,-244.0,0.00021666,2]
[387557799,1758767444325,-501.58013168,0.0002179,2]
[387557800,1758767444335,-1000.0,0.0002179,2]
[387557801,1758767444344,-1000.0,0.0002179,2]
[387557802,1758767444354,-501.44940855,0.0002179,2]
[387557803,1758767444363,-160.0,0.00021792,2]
[387557804,1758767444373,-5000.0,0.00021843,2]
[387557805,1758767444383,-151.0,0.00021843,2]
[387557806,1758767444392,-244.0,0.00021892,2]
[387557807,1758767444403,-811.22392608,0.00021912,2]
[387557808,1758767444412,-501.00712413,0.00021912,2]
[387557809,1758767444422,-832.68,0.00021916,2]
[387557810,1758767444431,-996.39,0.00021916,2]
[387557811,1758767444441,-480.0,0.00021916,2]
[387557812,1758767444451,-151.0,0.00021916,2]
[387557813,1758767444460,-480.0,0.00021916,2]
[387557814,1758767444470,-480.0,0.00021917,2]
[387557815,1758767444479,-480.0,0.00021917,2]
[387557816,1758767444489,-548.51,0.00021917,2]
[387557817,1758767444498,-783.15,0.00021917,2]
[387557818,1758767444508,-480.0,0.00021917,2]
[387557819,1758767444518,-662.93,0.00021917,2]
[387557820,1758767444527,-1015.1,0.00021917,2]
[387557821,1758767444536,-592.93,0.00021917,2]
[387557822,1758767444546,-795.77,0.00021917,2]
[387557823,1758767444555,-163.710445,0.00021917,2]
[387557825,1758767444564,-163.710445,0.00021917,2]
[387557827,1758767444577,-480.0,0.00021917,2]
[387557829,1758767444586,-163.710445,0.00021917,2]
[387557831,1758767444596,-163.710445,0.00021917,2]
[387557833,1758767444606,-721.08,0.00021917,2]
[387557835,1758767444617,-588.34,0.00021917,2]
[387557837,1758767444627,-480.0,0.00021917,2]
[387557839,1758767444637,-2319.69,0.00021917,2]
[387557840,1758767444647,-895.99,0.00021917,2]
[387557842,1758767444657,-480.0,0.00021917,2]
[387557844,1758767444667,-480.0,0.00021917,2]
[387557846,1758767444676,-157.940762,0.00021917,2]
[387557848,1758767444685,-235.92687249,0.00021917,2]
[387557850,1758767444694,-157.940762,0.00021917,2]
[387557852,1758767444703,-157.940762,0.00021917,2]
[387557854,1758767444713,-157.940762,0.00021917,2]
[387557856,1758767444722,-504.56,0.00021917,2]
[387557858,1758767444732,-438.52140611,0.00021917,2]
[387557860,1758767444742,-747.57,0.00021917,2]
[387557862,1758767444751,-480.0,0.00021917,2]
[387557864,1758767444761,-1621.46,0.00021917,2]
[387557866,1758767444771,-561.41,0.00021917,2]
[387557868,1758767444780,-515.64141291,0.00021917,2]
[387557870,1758767444789,-1267.45,0.00021917,2]
[387557872,1758767444799,-1081.32,0.00021917,2]
[387557874,1758767444808,-151.0,0.00021918,2]
[387557876,1758767444818,-151.0,0.00021918,2]
[387557878,1758767444827,-198.27542,0.00021918,2]
[387557880,1758767444836,-2886.73,0.00022,2]
[387557882,1758767444845,-201.87,0.00022,2]
[387557884,1758767444855,-244.0,0.00022005,2]
[387557886,1758767444864,-2780.66847892,0.00022044,2]
[387557888,1758767444874,-500.0,0.00022059,2]
[387557890,1758767444883,-244.0,0.00022078,2]
[387557891,1758767444892,-160.0,0.0002208,2]
[387557893,1758767444902,-160.0,0.0002208,2]
[387557896,1758767444912,-160.0,0.0002208,2]
[387557898,1758767444921,-417.15472785,0.0002208,2]
[387557900,1758767444931,-160.0,0.0002208,2]
[387557902,1758767444941,-160.0,0.00022091,2]
[387557904,1758767444951,-244.0,0.00022157,2]
[387557906,1758767444960,-1500.0,0.00022168,2]
[387557908,1758767444970,-832.68,0.0002219,2]
[387557909,1758767444979,-996.39,0.0002219,2]
[387557911,1758767444989,-480.0,0.0002219,2]
[387557913,1758767444999,-480.0,0.0002219,2]
[387557915,1758767445008,-411.38,0.00022191,2]
[387557917,1758767445018,-163.077903,0.00022191,7]
[387557919,1758767445027,-480.0,0.00022191,2]
[387557921,1758767445036,-548.51,0.00022191,2]
[387557923,1758767445047,-783.15,0.00022191,2]
[387557925,1758767445056,-480.0,0.00022191,2]
[387557927,1758767445065,-662.93,0.00022191,2]
[387557929,1758767445076,-1015.1,0.00022191,2]
[387557931,1758767445086,-592.93,0.00022191,2]
[387557933,1758767445095,-795.77,0.00022191,2]
[387557935,1758767445105,-480.0,0.00022191,2]
[387557937,1758767445116,-721.08,0.00022191,2]
[387557939,1758767445125,-588.34,0.00022191,2]
[387557942,1758767445135,-483.8970318,0.00022191,2]
[387557944,1758767445145,-2319.69,0.00022191,2]
[387557946,1758767445155,-895.99,0.00022191,2]
[387557948,1758767445164,-480.0,0.00022191,2]
[387557950,1758767445174,-480.0,0.00022191,2]
[387557952,1758767445183,-504.56,0.00022191,2]
[387557954,1758767445192,-747.57,0.00022191,2]
[387557956,1758767445202,-480.0,0.00022191,2]
[387557957,1758767445211,-1621.46,0.00022191,2]
[387557960,1758767445221,-561.41,0.00022191,2]
[387557962,1758767445231,-1267.45,0.00022191,2]
[387557964,1758767445241,-1081.32,0.00022191,2]
[387557966,1758767445250,-244.0,0.00022274,2]